bitfinex/quotes_BTCUSD_20220111
["timestamp","ask_amount","ask_price","bid_price","bid_amount"]
[1641895463201,0.05535665,41985.0,41983.0,0.06072989]
[1641895463603,0.00535665,41985.0,41983.0,0.06072989]
[1641895463803,0.05535665,41985.0,41983.0,0.06072989]
[1641895464005,0.00535665,41985.0,41983.0,0.06072989]
[1641895464206,0.01535665,41985.0,41983.0,0.07372989]
[1641895464605,0.01535665,41985.0,41984.0,0.373647]
[1641895464804,0.01542842,41985.0,41984.0,0.373647]
[1641895465453,0.05542842,41985.0,41984.0,0.373647]
[1641895465853,0.00542842,41985.0,41984.0,0.373647]
[1641895466054,0.05542842,41985.0,41984.0,0.373647]
[1641895466257,0.00542842,41985.0,41984.0,0.394647]
[1641895467355,0.119047,41989.0,41985.0,0.55492175]
[1641895467557,0.169047,41989.0,41986.0,0.059523]
[1641895467756,0.169047,41989.0,41987.0,0.04166628]
[1641895468356,0.177047,41989.0,41987.0,0.36362321]
[1641895469205,0.177047,41989.0,41987.0,0.48266921]
[1641895469403,0.177047,41989.0,41987.0,0.42314621]
[1641895469600,0.177047,41989.0,41987.0,0.37047993]
[1641895469601,0.169047,41989.0,41987.0,0.37047993]
[1641895469802,0.16940306,41989.0,41988.0,0.00153056]
[1641895470402,0.17940306,41989.0,41988.0,0.02353056]
[1641895471503,0.16940306,41989.0,41988.0,0.00153056]
[1641895472304,0.17440306,41989.0,41988.0,0.01653056]
[1641895474158,0.16940306,41989.0,41988.0,0.00153056]
[1641895474359,0.17640306,41989.0,41988.0,0.01353056]
[1641895476262,0.17440306,41989.0,41988.0,0.01753056]
[1641895477503,0.16940306,41989.0,41988.0,0.00153056]
[1641895478304,0.17440306,41989.0,41988.0,0.01753056]
[1641895479611,0.16940306,41989.0,41988.0,0.00153056]
[1641895480448,0.17640306,41989.0,41988.0,0.01353056]
[1641895481751,0.16940306,41989.0,41988.0,0.00153056]
[1641895482451,0.17640306,41989.0,41988.0,0.01353056]
[1641895483652,0.16940306,41989.0,41988.0,0.00153056]
[1641895484052,0.20271343,41989.0,41988.0,0.00153056]
[1641895484302,0.20471343,41989.0,41988.0,0.02253056]
[1641895486301,0.21271343,41989.0,41988.0,0.03153056]
[1641895486901,1.02843484,41989.0,41988.0,0.03153056]
[1641895487100,3.61411675,41989.0,41988.0,0.03153056]
[1641895487303,3.98741975,41989.0,41988.0,0.03153056]
[1641895487502,3.98741975,41989.0,41988.0,0.01053056]
[1641895487701,3.97741975,41989.0,41988.0,0.00153056]
[1641895487956,1.39173784,41989.0,41988.0,0.00153056]
[1641895488356,1.40373784,41989.0,41988.0,0.00153056]
[1641895489556,1.39173784,41989.0,41988.0,0.00153056]
[1641895489756,1.39173784,41989.0,41988.0,0.00076528]
[1641895490358,1.40273784,41989.0,41988.0,0.00076528]
[1641895490757,1.05370606,41989.0,41988.0,0.00076528]
[1641895490958,0.54775265,41989.0,41988.0,0.00076528]
[1641895491159,0.17444965,41989.0,41988.0,0.00076528]
[1641895492110,0.16344965,41989.0,41988.0,0.00076528]
[1641895492308,0.17744965,41989.0,41988.0,0.00076528]
[1641895493518,0.16344965,41989.0,41988.0,0.00076528]
[1641895494309,0.52344965,41989.0,41988.0,0.00076528]
[1641895494709,0.52344965,41989.0,41987.0,0.059538]
[1641895495012,0.52344965,41989.0,41986.0,0.00172151]
[1641895495209,0.58299065,41989.0,41986.0,0.00124151]
[1641895495451,0.58299065,41989.0,41986.0,0.00172152]
[1641895495651,0.05954,41988.0,41986.0,0.06126152]
[1641895496351,0.07054,41988.0,41986.0,0.06078151]
[1641895497152,0.03767156,41987.0,41986.0,0.06078151]
[1641895497556,0.08767156,41987.0,41986.0,0.00124151]
[1641895497753,0.05,41987.0,41986.0,0.00124151]
[1641895498154,0.05954,41988.0,41986.0,0.00124151]
[1641895498356,0.061,41987.0,41986.0,0.00124151]
[1641895498960,0.061,41987.0,41986.0,0.06078151]
[1641895499706,0.05,41987.0,41986.0,0.06078151]
[1641895499907,0.05954,41988.0,41986.0,0.06078151]
[1641895500308,0.05954,41988.0,41985.0,0.39381198]
[1641895500611,0.1,41986.0,41985.0,0.39381198]
[1641895500806,0.93662374,41986.0,41985.0,0.39381198]
[1641895501009,0.93662374,41986.0,41978.0,0.00192044]
[1641895501010,0.373303,41985.0,41978.0,0.00192044]
[1641895501308,0.373303,41985.0,41977.0,0.009534]
[1641895501309,0.45479111,41981.0,41977.0,0.009534]
[1641895501507,0.373303,41980.0,41977.0,0.0114545]
[1641895501709,0.423303,41980.0,41977.0,0.0114545]
[1641895501907,0.059556,41979.0,41977.0,0.0114545]
[1641895502108,0.11911127,41979.0,41977.0,0.0114545]
[1641895502307,0.11911127,41979.0,41977.0,0.009534]
[1641895502508,0.18866727,41979.0,41977.0,0.009534]
[1641895502712,0.35406195,41978.0,41977.0,0.009534]
[1641895502952,0.40406195,41978.0,41977.0,0.009534]
[1641895504153,0.40406195,41978.0,41975.0,0.00047661]
[1641895504356,0.059555,41977.0,41975.0,0.00047661]
[1641895504554,0.31184077,41976.0,41975.0,0.00047661]
[1641895504754,0.31184077,41976.0,41971.0,0.25946559]
[1641895504954,0.48094977,41976.0,41974.0,0.00047664]
[1641895505360,0.48094977,41976.0,41974.0,0.06003164]
[1641895505557,0.169109,41976.0,41974.0,0.06003164]
[1641895505958,0.169109,41976.0,41974.0,0.059555]
[1641895506559,0.178109,41976.0,41974.0,0.059555]
[1641895507603,0.128109,41976.0,41974.0,0.059555]
[1641895507801,0.04938558,41975.0,41974.0,0.059555]
[1641895508004,0.04938558,41975.0,41974.0,0.433202]
[1641895508200,0.119109,41976.0,41974.0,0.433202]
[1641895508602,0.119109,41976.0,41974.0,0.7936992]
[1641895508802,0.119109,41976.0,41975.0,0.35574315]
[1641895509003,0.119109,41976.0,41975.0,0.72939015]
[1641895509803,0.119109,41976.0,41975.0,0.73033981]
[1641895510004,0.169109,41976.0,41975.0,0.73033981]
[1641895510763,0.05,41976.0,41975.0,0.73033981]
[1641895510956,0.059532,41978.0,41976.0,0.059531]
[1641895511157,0.059532,41978.0,41977.0,0.7475681]
[1641895511359,0.119067,41982.0,41977.0,0.8475681]
[1641895511559,0.5553,41989.0,41983.0,0.00126032]
[1641895511760,0.00085542,41991.0,41984.0,0.0476]
[1641895511958,1.4587,41998.0,41984.0,0.0476]
[1641895511959,0.059518,41988.0,41984.0,0.0476]
[1641895512259,1.1666,41998.0,41984.0,0.0476]
[1641895512260,0.00085556,41991.0,41987.0,0.119041]
[1641895512457,0.00085556,41991.0,41988.0,0.0476]
[1641895512657,0.00085556,41991.0,41990.0,0.00120641]
[1641895512859,0.00085556,41991.0,41990.0,0.45986452]
[1641895513059,0.00085556,41991.0,41990.0,0.83351152]
[1641895513264,0.119032,41995.0,41992.0,0.059516]
[1641895513459,0.00085559,41993.0,41992.0,0.226147]
[1641895513658,0.00085559,41993.0,41992.0,0.97471453]
[1641895514306,0.119032,41995.0,41992.0,0.540278]
[1641895514508,0.11988757,41995.0,41992.0,0.133031]
[1641895514804,0.11988757,41995.0,41994.0,0.00092258]
[1641895515607,0.119032,41995.0,41994.0,0.00092258]
[1641895516608,0.123032,41995.0,41994.0,0.01192258]
[1641895517809,0.119032,41995.0,41994.0,0.00092258]
[1641895518454,0.127032,41995.0,41994.0,0.01192258]
[1641895519855,0.15943405,41995.0,41994.0,0.00092258]
[1641895520355,0.5468,42000.0,41994.0,0.00092258]
[1641895520557,0.008,41995.0,41994.0,0.29290699]
[1641895521709,0.00085555,41997.0,41994.0,0.28190699]
[1641895522407,0.00085555,41997.0,41995.0,0.44592516]
[1641895522607,0.01985555,41997.0,41996.0,0.4111879]
[1641895522807,0.019,41997.0,41996.0,0.7848349]
[1641895523005,0.019,41997.0,41996.0,1.04147818]
[1641895523806,0.00085554,41998.0,41996.0,1.08907818]
[1641895524006,0.9829,42006.0,41997.0,0.74578415]
[1641895524208,0.9829,42006.0,42005.0,0.26431214]
[1641895524407,0.91355676,42011.0,42005.0,0.26431214]
[1641895524609,0.069,42006.0,42005.0,0.26431214]
[1641895525209,0.069,42006.0,42005.0,0.63745747]
[1641895525458,0.069,42006.0,42005.0,1.33505747]
[1641895525657,0.069,42006.0,42005.0,1.70997448]
[1641895525858,0.00085547,42008.0,42006.0,0.32578339]
[1641895526060,0.00085547,42008.0,42007.0,0.81798922]
[1641895526264,0.00085547,42008.0,42007.0,0.81927154]
[1641895526461,0.9956,42022.0,42017.0,0.24679988]
[1641895526662,0.30796963,42024.0,42017.0,0.24679988]
[1641895526861,0.25724824,42024.0,42017.0,0.24679988]
[1641895527660,0.00716963,42024.0,42017.0,0.24679988]
[1641895527861,0.00085536,42023.0,42017.0,0.24679988]
[1641895528263,0.00085536,42023.0,42020.0,0.25989075]
[1641895528463,0.00085536,42023.0,42020.0,0.06617]
[1641895528867,0.26334124,42024.0,42020.0,0.06617]
[1641895529211,0.00085535,42024.0,42020.0,0.06617]
[1641895529806,0.00085535,42024.0,42022.0,0.00134352]
[1641895530706,0.03676374,42023.0,42022.0,0.00134352]
[1641895530906,0.00085535,42024.0,42022.0,0.00134352]
[1641895531307,0.9824,42025.0,42022.0,0.00134352]
[1641895531511,0.98325534,42025.0,42022.0,0.00134352]
[1641895532108,0.98325534,42025.0,42024.0,0.29720514]
[1641895532408,0.008,42029.0,42024.0,0.29720514]
[1641895532608,0.42085533,42026.0,42024.0,0.29720514]
[1641895533255,0.42085533,42026.0,42022.0,0.00134352]
[1641895533655,0.42,42026.0,42022.0,0.00134352]
[1641895534756,0.42,42026.0,42024.0,0.00133783]
[1641895535055,0.42085533,42026.0,42024.0,0.00133783]
[1641895535957,0.42,42026.0,42024.0,0.00133783]
[1641895537505,0.31493643,42025.0,42024.0,0.00133783]
[1641895539908,0.30948868,42025.0,42024.0,0.00133783]
[1641895540108,0.30915111,42025.0,42024.0,0.00133783]
[1641895540309,0.68245411,42025.0,42024.0,0.00133783]
[1641895541666,0.30915111,42025.0,42024.0,0.00133783]
[1641895542866,0.30986332,42025.0,42024.0,0.00133783]
[1641895543266,0.68316632,42025.0,42024.0,0.00133783]
[1641895545725,0.73076632,42025.0,42024.0,0.00133783]
[1641895546124,0.73076632,42025.0,42009.0,0.00127025]
[1641895546325,0.3117,42024.0,42009.0,0.00127025]
[1641895546525,0.0476,42023.0,42009.0,0.00127025]
[1641895546725,0.3633408,42022.0,42009.0,0.00127025]
[1641895547030,0.00085539,42019.0,42009.0,0.00127025]
[1641895547325,0.33862698,42019.0,42009.0,0.00127025]
[1641895547525,0.7866438,42018.0,42009.0,0.00127025]
[1641895547724,2.18366523,42013.0,42006.0,0.27444279]
[1641895547957,0.34866742,42012.0,42006.0,0.27444279]
[1641895548156,0.34866742,42012.0,42005.0,0.009528]
[1641895548358,0.373303,42011.0,42005.0,0.009528]
[1641895548557,0.02559149,42006.0,42005.0,0.009528]
[1641895549159,0.02559149,42006.0,42005.0,0.31868787]
[1641895549357,0.02559149,42006.0,42005.0,0.6375886]
[1641895549561,0.00085547,42008.0,42005.0,0.6375886]
[1641895549758,0.00085547,42008.0,42007.0,0.00122219]
[1641895550357,0.3432,42016.0,42007.0,0.00122219]
[1641895550557,0.00085546,42010.0,42007.0,0.00122219]
[1641895550757,0.006,42008.0,42007.0,0.01422219]
[1641895550963,0.00477781,42008.0,42007.0,0.01426728]
[1641895552011,0.00085546,42010.0,42007.0,0.00126728]
[1641895552711,2.04869785,42010.0,42007.0,0.00126728]
[1641895552912,0.018,42010.0,42007.0,0.00126728]
[1641895553914,0.00085545,42011.0,42007.0,0.00126728]
[1641895554716,0.00028618,42010.0,42007.0,0.00126728]
[1641895555964,0.00028618,42010.0,42006.0,0.0011]
[1641895556163,0.373303,42009.0,42006.0,0.0011]
[1641895556364,0.2070095,42008.0,42006.0,0.0011]
[1641895556564,0.373303,42007.0,42006.0,0.0011]
[1641895558565,0.57383426,42007.0,42006.0,0.0011]
[1641895558766,0.58583426,42007.0,42006.0,0.0011]
[1641895559809,0.70399684,42007.0,42006.0,0.0011]
[1641895560709,0.71599684,42007.0,42006.0,0.0011]
[1641895561911,0.70399684,42007.0,42006.0,0.0011]
[1641895562717,0.71599684,42007.0,42006.0,0.0011]
[1641895563956,0.70399684,42007.0,42006.0,0.0011]
[1641895564758,0.71599684,42007.0,42006.0,0.0011]
[1641895565863,0.70399684,42007.0,42006.0,0.0011]
[1641895566705,0.71599684,42007.0,42006.0,0.0011]
[1641895567906,0.70399684,42007.0,42006.0,0.0011]
[1641895568309,0.70399684,42007.0,42005.0,0.0011]
[1641895568310,0.80159684,42007.0,42005.0,0.0011]
[1641895568510,0.42329868,42006.0,42005.0,0.0011]
[1641895568709,0.84420168,42006.0,42005.0,0.0011]
[1641895570559,0.94420168,42006.0,42005.0,0.0011]
[1641895570761,0.85620168,42006.0,42005.0,0.0011]
[1641895571760,0.432903,42006.0,42005.0,0.0011]
[1641895571956,0.420903,42006.0,42005.0,0.0011]
[1641895572158,0.72999211,42006.0,42005.0,0.0011]
[1641895573265,0.373303,42005.0,42002.0,0.24654529]
[1641895573458,0.420903,42005.0,42002.0,0.24654529]
[1641895574312,0.00028646,42008.0,42007.0,0.08826886]
[1641895574711,0.36824831,42015.0,42007.0,0.08826886]
[1641895574913,1.114,42017.0,42007.0,0.08826886]
[1641895575114,1.114,42017.0,42014.0,0.00124534]
[1641895575314,0.5931,42018.0,42015.0,0.28267159]
[1641895575613,0.88328362,42019.0,42015.0,0.28267159]
[1641895575818,0.0008554,42018.0,42015.0,0.28267159]
[1641895576917,0.055,42018.0,42015.0,0.28267159]
[1641895577315,0.055,42018.0,42014.0,0.31373057]
[1641895577964,0.2818,42024.0,42014.0,0.31373057]
[1641895578158,0.00085539,42018.0,42014.0,0.31373057]
[1641895578364,0.00085539,42018.0,42015.0,0.27051334]
[1641895578760,0.01385539,42018.0,42015.0,0.27051334]
[1641895579161,0.013,42018.0,42015.0,0.27051334]
[1641895580163,0.00085539,42019.0,42015.0,0.27051334]
[1641895580361,0.2818,42024.0,42015.0,0.27051334]
[1641895580664,0.00085539,42019.0,42016.0,0.36395157]
[1641895580866,0.01385539,42019.0,42016.0,0.36395157]
[1641895581064,0.01385539,42019.0,42017.0,0.00120203]
[1641895581706,0.013,42019.0,42017.0,0.00120203]
[1641895581908,0.00085538,42020.0,42017.0,0.00120203]
[1641895582108,0.00085538,42020.0,42018.0,0.35388097]
[1641895582308,0.00085538,42020.0,42019.0,0.36187577]
[1641895582509,0.00085538,42020.0,42019.0,0.00128664]
[1641895582710,0.00385538,42020.0,42019.0,0.35628664]
[1641895582909,0.003,42020.0,42019.0,0.42742664]
[1641895583513,0.00085537,42022.0,42019.0,0.42742664]
[1641895583709,0.00085537,42022.0,42021.0,0.0012955]
[1641895583909,1.1246,42029.0,42021.0,0.0012955]
[1641895584114,0.69729756,42038.0,42028.0,0.00125574]
[1641895584314,0.69729756,42038.0,42034.0,0.00120422]
[1641895584611,0.69729756,42038.0,42035.0,0.40826427]
[1641895584813,0.63268362,42036.0,42035.0,0.59451595]
[1641895585011,0.035,42036.0,42035.0,1.38286]
[1641895585210,0.59768362,42041.0,42035.0,1.62014832]
[1641895585467,0.59768362,42043.0,42036.0,0.36392164]
[1641895585662,0.59768362,42043.0,42040.0,0.37482675]
[1641895585663,0.13509175,42043.0,42040.0,0.37482675]
[1641895585862,0.13509175,42043.0,42042.0,0.40092966]
[1641895586067,0.13509175,42043.0,42042.0,0.49852966]
[1641895586263,0.008,42049.0,42043.0,0.30187342]
[1641895586465,0.008,42049.0,42048.0,0.00123288]
[1641895586664,0.008,42049.0,42048.0,0.59940511]
[1641895587265,0.008,42049.0,42048.0,0.35022496]
[1641895587465,0.008,42049.0,42048.0,0.42777677]
[1641895587668,0.008,42049.0,42048.0,0.80131677]
[1641895588367,0.008,42049.0,42048.0,1.13413355]
[1641895588766,0.008,42049.0,42048.0,1.14113355]
[1641895589213,0.008,42049.0,42048.0,0.80831677]
[1641895589815,0.008,42049.0,42048.0,0.73211333]
[1641895590015,0.008,42049.0,42048.0,0.72511333]
[1641895590416,0.008,42049.0,42048.0,1.00244096]
[1641895590618,1.308,42049.0,42048.0,0.37612125]
[1641895590817,1.308,42049.0,42048.0,0.00434837]
[1641895591017,0.008,42049.0,42048.0,0.00434837]
[1641895591618,0.008,42049.0,42048.0,0.66212725]
[1641895591816,0.008,42049.0,42048.0,1.03566725]
[1641895592015,0.008,42049.0,42048.0,1.03266725]
[1641895592417,0.008,42049.0,42048.0,1.51038279]
[1641895592815,0.008,42049.0,42048.0,1.51538279]
[1641895594068,0.008,42049.0,42048.0,1.51038279]
[1641895594268,0.008,42049.0,42048.0,2.21801916]
[1641895594870,0.008,42049.0,42048.0,1.27016797]
[1641895595981,0.008,42049.0,42048.0,1.53516183]
[1641895596369,0.008,42049.0,42048.0,2.24281238]
[1641895596807,0.008,42049.0,42048.0,1.54116183]
[1641895597307,0.008,42049.0,42048.0,1.26916797]
[1641895597507,0.00085514,42051.0,42048.0,1.26916797]
[1641895597708,0.00085514,42051.0,42049.0,0.37354]
[1641895597907,0.00085514,42051.0,42050.0,0.00127794]
[1641895598109,0.00085514,42051.0,42050.0,0.37481794]
[1641895598309,0.00342006,42057.0,42050.0,0.37481794]
[1641895598507,0.9787,42061.0,42060.0,0.3151148]
[1641895598708,0.69842752,42066.0,42060.0,0.3151148]
[1641895598908,0.79842752,42066.0,42050.0,0.29010766]
[1641895599113,0.46976201,42066.0,42058.0,0.60643569]
[1641895599308,0.2,42066.0,42058.0,0.60643569]
[1641895599508,0.1,42066.0,42058.0,0.60643569]
[1641895599708,0.59842752,42065.0,42055.0,0.60643569]
[1641895599910,0.00085504,42064.0,42060.0,0.32736801]
[1641895600761,0.052,42064.0,42060.0,0.32736801]
[1641895600964,0.05285504,42064.0,42060.0,0.32736801]
[1641895601965,0.052,42064.0,42060.0,0.32736801]
[1641895602168,0.00085504,42064.0,42060.0,0.32736801]
[1641895602865,0.04985504,42064.0,42060.0,0.32736801]
[1641895603266,0.049,42064.0,42060.0,0.32736801]
[1641895603466,0.04985504,42064.0,42060.0,0.32736801]
[1641895603867,0.04985504,42064.0,42062.0,0.43904018]
[1641895604071,0.00085504,42064.0,42062.0,0.43904018]
[1641895604508,0.62,42067.0,42062.0,0.43904018]
[1641895604708,0.014,42064.0,42062.0,0.44040628]
[1641895605409,0.014,42064.0,42062.0,0.0013661]
[1641895606012,0.00085503,42065.0,42062.0,0.0013661]
[1641895606712,0.01485503,42065.0,42062.0,0.0013661]
[1641895607017,0.014,42065.0,42062.0,0.0013661]
[1641895607412,0.42,42067.0,42064.0,0.00127226]
[1641895607613,0.59842752,42068.0,42066.0,0.0201734]
[1641895607814,0.60642752,42069.0,42066.0,0.0406134]
[1641895608072,0.60642752,42069.0,42068.0,0.00121598]
[1641895608473,0.008,42069.0,42068.0,0.00121598]
[1641895608673,0.008,42069.0,42067.0,0.60643569]
[1641895609272,0.38466103,42068.0,42066.0,0.60643569]
[1641895609472,1.67686156,42067.0,42066.0,0.60643569]
[1641895609677,1.60336021,42067.0,42066.0,0.60643569]
[1641895609873,4.09169587,42067.0,42066.0,0.60643569]
[1641895610076,4.09169587,42067.0,42062.0,0.60643569]
[1641895610273,0.37686156,42066.0,42062.0,0.60643569]
[1641895610473,0.42446156,42066.0,42062.0,0.60643569]
[1641895610674,0.52446156,42066.0,42062.0,0.60643569]
[1641895610875,0.52446156,42066.0,42060.0,0.42]
[1641895611075,0.51851852,42066.0,42060.0,0.42]
[1641895612913,0.62851852,42066.0,42060.0,0.42]
[1641895613114,1.22694604,42066.0,42060.0,0.42]
[1641895613713,1.42694604,42066.0,42060.0,0.42]
[1641895613914,0.5955,42062.0,42060.0,0.42]
[1641895614213,1.75566306,42061.0,42060.0,0.42]
[1641895614412,1.80566306,42061.0,42060.0,0.42]
[1641895614613,1.85566306,42061.0,42060.0,0.42]
[1641895614821,2.56216306,42061.0,42060.0,0.3201]
[1641895615014,1.31216306,42061.0,42051.0,0.60643569]
[1641895615215,0.26256901,42053.0,42051.0,0.60643569]
[1641895615470,0.38317086,42052.0,42051.0,0.60643569]
[1641895616066,0.38317086,42052.0,42049.0,0.60643569]
[1641895616867,0.38317086,42052.0,42046.0,0.12670088]
[1641895616868,0.39517086,42052.0,42048.0,0.60643569]
[1641895617675,0.39517086,42052.0,42047.0,0.60643569]
[1641895618067,0.38317086,42052.0,42047.0,0.60643569]
[1641895618268,0.38317086,42052.0,42049.0,0.60643569]
[1641895618767,0.39517086,42052.0,42049.0,0.60643569]
[1641895618969,0.39517086,42052.0,42048.0,0.60643569]
[1641895618970,0.54517086,42052.0,42048.0,0.60643569]
[1641895619212,0.44517086,42052.0,42048.0,0.60643569]
[1641895619414,0.59517086,42052.0,42046.0,0.70750831]
[1641895619615,0.64517086,42052.0,42044.0,0.70750831]
[1641895619819,0.64517086,42052.0,42037.0,0.80894143]
[1641895619820,0.44523254,42040.0,42037.0,0.80894143]
[1641895620024,0.43201753,42039.0,42037.0,1.22894143]
[1641895620215,0.41463012,42038.0,42037.0,1.22894143]
[1641895620415,0.41463012,42038.0,42037.0,0.42]
[1641895620815,0.69106931,42038.0,42037.0,0.42]
[1641895621217,0.69106931,42038.0,42037.0,0.0001]
[1641895621616,0.66233076,42038.0,42037.0,0.0001]
[1641895621819,0.39685072,42038.0,42037.0,0.0001]
[1641895622017,0.39034286,42038.0,42037.0,0.0001]
[1641895622418,0.0476,42038.0,42037.0,0.0001]
[1641895622622,0.38534958,42038.0,42037.0,0.0001]
[1641895622819,0.0586,42038.0,42037.0,0.0001]
[1641895623065,0.3979387,42038.0,42037.0,0.0001]
[1641895623266,0.0586,42038.0,42037.0,0.0001]
[1641895623663,0.0586,42038.0,42033.0,0.31134908]
[1641895623664,0.0586,42038.0,42033.0,0.31018374]
[1641895623864,0.0586,42038.0,42035.0,0.00048466]
[1641895624065,0.0476,42038.0,42035.0,0.00048466]
[1641895624364,0.32592208,42037.0,42035.0,0.00048466]
[1641895624565,0.0476,42036.0,42035.0,0.00048466]
[1641895624765,0.0476,42036.0,42031.0,0.80894143]
[1641895625968,0.0476,42036.0,42035.0,0.24104267]
[1641895626168,0.0476,42036.0,42035.0,0.66104267]
[1641895626811,0.0586,42036.0,42035.0,0.65868667]
[1641895628217,0.0476,42036.0,42035.0,0.65868667]
[1641895628816,0.0596,42036.0,42035.0,0.65868667]
[1641895629817,0.0596,42036.0,42035.0,0.66024747]
[1641895630016,0.0476,42036.0,42035.0,0.66024747]
[1641895630478,0.0476,42036.0,42035.0,1.03378747]
[1641895630866,0.013,42036.0,42035.0,1.03378747]
[1641895631466,0.013,42036.0,42035.0,1.8427289]
[1641895632068,0.00042852,42037.0,42035.0,2.21040275]
[1641895632268,0.00042852,42037.0,42036.0,0.37354]
[1641895632667,0.32651647,42044.0,42036.0,0.37354]
[1641895632868,0.005,42037.0,42035.0,1.23050223]
[1641895633072,0.005,42037.0,42036.0,0.37354]
[1641895633469,0.005,42037.0,42035.0,1.23050223]
[1641895634324,0.32544398,42044.0,42035.0,1.23050223]
[1641895634525,0.32544398,42044.0,42035.0,0.4215608]
[1641895634724,0.32544398,42044.0,42036.0,0.00177222]
[1641895634925,0.008,42037.0,42036.0,0.00177222]
[1641895636127,0.31844198,42038.0,42036.0,0.00177222]
[1641895636329,0.32704973,42037.0,42036.0,0.00177222]
[1641895636828,0.38864973,42037.0,42036.0,0.00177222]
[1641895637432,0.0616,42037.0,42036.0,0.00177222]
[1641895638065,0.0476,42037.0,42036.0,0.00177222]
[1641895638864,0.0596,42037.0,42036.0,0.00177222]
[1641895639864,0.38397619,42037.0,42036.0,0.00177222]
[1641895640068,0.37197619,42037.0,42036.0,0.00177222]
[1641895640266,0.0476,42037.0,42036.0,0.00177222]
[1641895640870,0.0596,42037.0,42036.0,0.00177222]
[1641895641810,0.0596,42037.0,42035.0,0.42]
[1641895641811,0.0596,42037.0,42035.0,0.35177222]
[1641895642211,0.0476,42037.0,42035.0,0.62660263]
[1641895642411,0.00716611,42038.0,42035.0,0.92156256]
[1641895642613,0.25808837,42045.0,42035.0,0.92156256]
[1641895642812,0.007,42037.0,42036.0,0.45133991]
[1641895643011,0.007,42037.0,42036.0,0.82612793]
[1641895643416,0.007,42037.0,42036.0,0.37478802]
[1641895644014,0.007,42037.0,42035.0,0.35177222]
[1641895644215,0.25808837,42045.0,42035.0,0.35177222]
[1641895644819,0.27108837,42045.0,42035.0,0.35177222]
[1641895646064,0.25808837,42045.0,42035.0,0.35177222]
[1641895646461,0.25308837,42045.0,42035.0,0.35177222]
[1641895646763,0.05947365,42042.0,42035.0,0.35177222]
[1641895647161,0.26608837,42045.0,42035.0,0.35177222]
[1641895647362,0.26608837,42045.0,42039.0,0.059476]
[1641895647563,0.059476,42043.0,42039.0,0.059476]
[1641895648568,0.05947546,42043.0,42040.0,0.059474]
[1641895648764,0.05947546,42043.0,42040.0,0.118948]
[1641895648963,0.07147546,42043.0,42040.0,0.118948]
[1641895649418,0.07147546,42043.0,42040.0,0.059474]
[1641895650420,0.012,42043.0,42040.0,0.059474]
[1641895650822,0.013,42043.0,42041.0,0.059469]
[1641895651019,0.013,42043.0,42041.0,0.178406]
[1641895651223,0.013,42043.0,42042.0,0.29160623]
[1641895651422,0.013,42043.0,42042.0,0.58653764]
[1641895651821,0.013,42043.0,42042.0,0.58782344]
[1641895652022,0.013,42043.0,42042.0,0.96136344]
[1641895652222,0.00307766,42050.0,42049.0,0.43719654]
[1641895652426,0.60044549,42052.0,42051.0,0.3293315]
[1641895652623,0.00076938,42052.0,42051.0,0.3293315]
[1641895652824,0.061,42050.0,42049.0,0.059449]
[1641895653080,0.061,42050.0,42048.0,0.118898]
[1641895653482,0.28780141,42049.0,42048.0,0.237796]
[1641895654277,0.28780141,42049.0,42048.0,0.118898]
[1641895654880,0.29980141,42049.0,42048.0,0.118898]
[1641895655281,0.29980141,42049.0,42038.0,0.80859569]
[1641895655282,0.78219236,42049.0,42038.0,0.80859569]
[1641895655480,0.2476,42048.0,42038.0,0.80859569]
[1641895655780,0.00595323,42047.0,42038.0,0.80859569]
[1641895655979,0.0476,42046.0,42041.0,0.059478]
[1641895656279,0.059479,42044.0,42041.0,0.059478]
[1641895656484,0.168946,42048.0,42041.0,0.11895]
[1641895656485,0.0476,42043.0,42041.0,0.11895]
[1641895656711,0.0476,42042.0,42041.0,0.11895]
[1641895656911,0.06676475,42044.0,42041.0,0.11895]
[1641895657313,0.06676475,42044.0,42041.0,0.059478]
[1641895657513,0.3357197,42043.0,42041.0,0.059478]
[1641895657712,0.3357197,42043.0,42041.0,0.11895]
[1641895658215,0.3357197,42043.0,42041.0,0.059478]
[1641895659020,0.3467197,42043.0,42041.0,0.059478]
[1641895659817,0.01187577,42043.0,42042.0,0.0012021]
[1641895660018,0.01187577,42043.0,42042.0,0.00394637]
[1641895660217,0.00087577,42043.0,42042.0,0.00394637]
[1641895660865,0.01187577,42043.0,42042.0,0.00394637]
[1641895664224,0.00087577,42043.0,42042.0,0.00394637]
[1641895664621,0.00087577,42043.0,42042.0,0.37748637]
[1641895664819,0.00176423,42043.0,42042.0,0.37748637]
[1641895665021,0.02676423,42043.0,42042.0,0.37748637]
[1641895665820,0.00076938,42052.0,42051.0,0.29374121]
[1641895666024,0.00076938,42052.0,42049.0,0.43976118]
[1641895666221,0.91380036,42057.0,42049.0,0.49920818]
[1641895666426,0.59647487,42057.0,42049.0,0.38031318]
[1641895666623,0.37737645,42058.0,42048.0,0.118895]
[1641895667023,0.27761414,42056.0,42051.0,0.33226875]
[1641895667222,0.27761414,42056.0,42053.0,0.059447]
[1641895667422,0.27761414,42056.0,42053.0,0.118896]
[1641895668469,0.27612414,42056.0,42054.0,0.059452]
[1641895669471,0.27356414,42056.0,42054.0,0.059452]
[1641895669867,0.37945379,42057.0,42055.0,0.00276699]
[1641895670069,0.06030537,42057.0,42055.0,0.00276699]
[1641895670267,0.03649537,42057.0,42055.0,0.00276699]
[1641895670467,0.03564028,42057.0,42055.0,0.00276699]
[1641895671469,0.09509328,42057.0,42055.0,0.00276699]
[1641895671917,1.4680711,42056.0,42055.0,0.00276699]
[1641895672919,1.4780711,42056.0,42055.0,0.00276699]
[1641895674323,1.4680711,42056.0,42055.0,0.00276699]
[1641895674725,1.4680711,42056.0,42055.0,0.00185664]
[1641895674922,0.3280711,42056.0,42055.0,0.00185664]
[1641895675123,0.01,42056.0,42055.0,0.00185664]
[1641895675323,0.32943017,42056.0,42055.0,0.00185664]
[1641895675765,0.70355689,42056.0,42055.0,0.00185664]
[1641895676167,0.69355689,42056.0,42055.0,0.00185664]
[1641895676368,0.79355689,42056.0,42055.0,0.00185664]
[1641895676768,1.74355689,42056.0,42055.0,0.00185664]
[1641895676968,1.65355689,42056.0,42055.0,0.00185664]
[1641895677168,1.31,42056.0,42055.0,0.00185664]
[1641895677569,0.36,42056.0,42055.0,0.00185664]
[1641895678368,0.35,42056.0,42055.0,0.00185664]
[1641895678968,0.361,42056.0,42055.0,0.00185664]